bitfinex/quotes_SOLUSD_20241013
["timestamp","ask_amount","ask_price","bid_price","bid_amount"]
[1728807493349,0.1,147.09,147.03,20.0]
[1728807493550,0.1,147.09,147.04,23.776884]
[1728807493771,0.1,147.09,147.05,20.0]
[1728807494132,0.1,147.09,147.06,1.35971204]
[1728807494736,0.1,147.09,147.05,20.0]
[1728807501559,0.1,147.09,147.06,1.35971555]
[1728807503877,0.1,147.09,147.05,20.0]
[1728807509260,0.1,147.09,147.01,3.89446417]
[1728807509460,0.1,147.09,147.03,20.0]
[1728807509661,0.1,147.09,147.04,3.41833686]
[1728807509851,0.1,147.09,147.05,1.35983715]
[1728807517868,0.1,147.09,147.04,3.41857497]
[1728807519985,0.1,147.09,147.0,3.93290022]
[1728807519986,13.4482,147.09,147.01,20.0]
[1728807520186,6.799,147.08,147.02,3.4205455]
[1728807520361,6.799,147.08,147.01,3.4205455]
[1728807520560,6.799,147.08,147.02,3.4205455]
[1728807520766,6.799,147.08,147.0,3.4205455]
[1728807520964,6.799,147.08,147.01,3.4205455]
[1728807521185,6.799,147.08,147.02,3.4205455]
[1728807521389,6.799,147.08,147.0,23.776884]
[1728807521681,16.0786,147.07,147.03,3.42245282]
[1728807521896,16.0786,147.07,147.0,23.776884]
[1728807521897,16.0786,147.07,147.01,23.42245282]
[1728807522186,16.0786,147.07,147.02,23.42245282]
[1728807522362,16.0786,147.07,147.03,23.42245282]
[1728807522560,16.0786,147.07,147.03,20.0]
[1728807522785,16.0786,147.07,147.04,23.42308062]
[1728807522986,16.0786,147.07,147.04,20.0]
[1728807523383,16.0786,147.07,147.01,20.0]
[1728807523558,16.0786,147.07,147.02,3.42315383]
[1728807523762,16.0786,147.07,147.03,3.42315383]
[1728807524083,16.0786,147.07,147.02,3.42315383]
[1728807524281,16.0786,147.07,147.03,3.42315383]
[1728807524490,16.0786,147.07,147.04,3.42315383]
[1728807524667,16.0786,147.07,147.02,3.42315383]
[1728807524864,16.0786,147.07,147.03,3.42315383]
[1728807525077,16.0786,147.07,147.01,20.0]
[1728807525396,6.8004,147.05,147.04,3.42437959]
[1728807525582,6.8,147.06,147.02,3.42437959]
[1728807525755,6.8,147.06,146.99,3.42437959]
[1728807525956,22.8782,147.07,147.0,4.78460961]
[1728807526194,22.8782,147.07,147.01,3.42437959]
[1728807526501,22.8782,147.07,147.02,3.42437959]
[1728807526657,22.8782,147.07,147.01,3.42437959]
[1728807526862,22.8782,147.07,147.02,3.42437959]
[1728807527096,22.8782,147.07,146.98,23.776884]
[1728807527278,22.8782,147.07,146.99,23.42437959]
[1728807527477,22.8782,147.07,147.0,4.7846455]
[1728807527694,22.8782,147.07,147.01,3.42437959]
[1728807527988,6.8002,147.06,147.02,3.42437959]
[1728807528301,6.8002,147.06,147.0,3.42437959]
[1728807528472,6.8002,147.06,147.01,3.42437959]
[1728807528767,6.8002,147.06,147.02,3.42437959]
[1728807528966,6.8002,147.06,147.0,4.78464807]
[1728807529167,6.8002,147.06,147.01,3.42437959]
[1728807529394,6.8002,147.06,147.02,3.42437959]
[1728807529590,6.8002,147.06,146.98,3.42437959]
[1728807529887,6.8002,147.06,146.99,4.78471864]
[1728807530088,6.8002,147.06,147.0,3.42437959]
[1728807530269,6.8002,147.06,147.01,3.42437959]
[1728807530468,16.0786,147.07,147.02,3.42437959]
[1728807530707,6.8004,147.05,146.98,3.42437959]
[1728807531059,6.8004,147.05,146.99,3.42437959]
[1728807531300,6.8004,147.05,147.0,3.42437959]
[1728807531604,6.8004,147.05,147.01,3.42437959]
[1728807531900,6.8004,147.05,146.97,23.776884]
[1728807532077,6.8004,147.05,146.98,23.42437959]
[1728807532274,6.8004,147.05,146.99,23.42437959]
[1728807532587,6.8004,147.05,147.0,23.42437959]
[1728807532903,6.8004,147.05,146.98,20.0]
[1728807533070,6.8004,147.05,147.01,3.42652123]
[1728807533271,6.8004,147.05,146.98,20.0]
[1728807533272,6.8004,147.05,146.99,3.42652123]
[1728807533473,6.8004,147.05,147.0,3.42652123]
[1728807533692,6.8004,147.05,146.99,3.42652123]
[1728807533877,6.8004,147.05,147.0,3.42652123]
[1728807534190,6.8004,147.05,146.99,3.42652123]
[1728807534380,6.8004,147.05,147.0,3.42652123]
[1728807534574,6.8004,147.05,146.99,3.42652123]
[1728807534782,6.8004,147.05,147.0,3.42652123]
[1728807534972,6.8004,147.05,146.99,4.7869273]
[1728807535375,6.8004,147.05,147.0,3.42652123]
[1728807535576,6.8012,147.04,146.99,3.42652123]
[1728807535780,6.8004,147.05,146.99,3.42652123]
[1728807536673,6.8004,147.05,146.99,4.78692749]
[1728807536889,6.8004,147.05,146.99,3.42652123]
[1728807541590,6.8004,147.05,146.96,20.0]
[1728807541591,6.8004,147.05,146.97,3.42652123]
[1728807541799,6.8004,147.05,146.98,3.42652123]
[1728807542103,6.8004,147.05,146.97,3.42652123]
[1728807542406,6.8004,147.05,146.98,4.78698318]
[1728807542567,6.8004,147.05,146.98,1.36046195]
[1728807542765,16.0786,147.07,146.98,4.78295543]
[1728807542961,16.0786,147.07,146.98,3.42249348]
[1728807543205,16.0786,147.07,146.97,3.42249348]
[1728807543774,6.8001,147.06,146.98,3.42249348]
[1728807543984,6.8001,147.06,146.97,3.42249348]
[1728807544186,6.8001,147.06,146.98,3.42249348]
[1728807544389,6.8001,147.06,146.97,3.42249348]
[1728807544686,6.8001,147.06,146.98,3.42249348]
[1728807544996,6.8001,147.06,146.97,3.42249348]
[1728807545195,6.8001,147.06,146.98,4.78289052]
[1728807545397,16.0786,147.07,146.98,1.36039704]
[1728807545697,6.8,147.06,146.98,4.78289052]
[1728807545899,6.8,147.06,146.98,1.36039704]
[1728807546104,6.8,147.06,146.98,4.78289052]
[1728807546401,6.8,147.06,146.98,1.36039704]
[1728807546602,6.8,147.06,146.97,27.1985378]
[1728807546776,6.8,147.06,146.98,24.78205163]
[1728807547098,6.8,147.06,146.99,3.4216538]
[1728807547307,6.8,147.06,147.0,1.36039806]
[1728807548303,6.8,147.06,146.99,4.7819564]
[1728807549179,22.8781,147.07,146.99,4.7819564]
[1728807550081,22.8781,147.07,146.99,1.36032823]
[1728807550285,22.8781,147.07,146.99,4.78198161]
[1728807551192,22.8781,147.07,146.99,3.42165338]
[1728807551392,22.8781,147.07,147.0,1.36028728]
[1728807552507,16.0786,147.07,146.99,3.42165338]
[1728807552805,6.7999,147.06,146.99,3.42165338]
[1728807557793,6.7999,147.06,146.98,20.0]
[1728807557991,6.7999,147.06,146.99,3.42350202]
[1728807558188,16.0786,147.07,146.99,3.42350202]
[1728807558390,16.0786,147.07,147.0,1.36025551]
[1728807558606,16.0786,147.07,147.0,4.78375753]
[1728807559113,16.0786,147.07,147.01,3.42350202]
[1728807559294,16.0786,147.07,147.02,1.36019413]
[1728807559686,16.0786,147.07,147.0,4.78369641]
[1728807559897,16.0786,147.07,147.01,3.42350202]
[1728807560123,16.0786,147.07,147.02,1.36019429]
[1728807560283,16.0786,147.07,147.02,4.78369631]
[1728807560488,16.0786,147.07,147.02,1.36019429]
[1728807560708,16.0786,147.07,147.01,20.0]
[1728807560927,0.1,147.09,147.02,4.78358525]
[1728807561218,0.1,147.09,147.03,3.42350202]
[1728807561625,0.1,147.09,147.02,3.42350202]
[1728807561801,0.1,147.09,147.03,4.78344843]
[1728807562112,0.1,147.09,147.03,1.35994641]
[1728807562333,0.1,147.09,147.03,4.78344843]
[1728807562624,0.1,147.09,147.03,1.35994641]
[1728807562791,0.1,147.09,147.03,4.78344843]
[1728807563088,0.1,147.09,147.03,1.35994641]
[1728807563286,0.1,147.09,147.06,20.0]
[1728807566122,0.1,147.09,147.06,11.20687293]
[1728807568623,0.1,147.09,147.07,11.20687293]
[1728807568823,0.1,147.09,147.08,31.20687293]
[1728807568994,0.1,147.09,147.08,20.0]
[1728807571507,0.1,147.09,147.08,32.56663157]
[1728807572106,0.1,147.09,147.08,31.20687293]
[1728807574021,0.1,147.09,147.07,20.0]
[1728807574329,0.1,147.09,147.08,31.20687293]
[1728807576599,0.1,147.09,147.08,20.0]
[1728807576798,0.1,147.09,147.08,31.20687293]
[1728807578123,0.1,147.09,147.08,32.56643954]
[1728807579210,0.1,147.09,147.08,31.20687293]
[1728807590026,0.1,147.09,147.08,11.20687293]
[1728807590333,0.1,147.09,147.08,31.20687293]
[1728807591528,0.1,147.09,147.08,20.0]
[1728807591733,0.1,147.09,147.07,20.0]
[1728807592816,0.1,147.09,147.06,11.20687293]
[1728807593011,0.1,147.09,147.01,3.41988527]
[1728807593229,0.1,147.09,147.05,11.20687293]
[1728807593517,6.8986,147.09,147.05,11.20687293]
[1728807593821,0.1,147.09,147.06,11.20687293]
[1728807594433,0.1,147.09,147.07,20.0]
[1728807595031,0.1,147.09,147.06,20.0]
[1728807595242,6.799,147.08,147.04,11.20687293]
[1728807595545,6.8986,147.09,147.04,11.20687293]
[1728807596715,6.8986,147.09,147.05,20.0]
[1728807601218,6.8986,147.09,147.05,11.20687293]
[1728807601435,0.1,147.09,147.05,11.20687293]
[1728807604252,6.8985,147.09,147.05,20.0]
[1728807606439,0.1,147.09,147.01,20.0]
[1728807606722,0.1,147.09,147.02,3.428865]
[1728807606723,15.2286,147.07,147.02,3.428865]
[1728807606924,6.8005,147.05,146.99,11.20687293]
[1728807607253,6.8005,147.05,146.98,11.20687293]
[1728807607749,6.8009,147.04,146.98,11.20687293]
[1728807608153,6.8009,147.04,146.99,20.0]
[1728807608523,6.8004,147.05,146.99,12.56733347]
[1728807608729,6.8004,147.05,146.99,11.20687293]
[1728807609141,6.8004,147.05,146.98,11.20687293]
[1728807610449,6.8004,147.05,146.99,20.0]
[1728807613360,6.8004,147.05,147.0,20.0]
[1728807615249,6.8004,147.05,147.0,21.36040488]
[1728807615448,6.8004,147.05,147.0,20.0]
[1728807617354,6.8004,147.05,147.0,21.36040511]
[1728807617746,6.8004,147.05,147.0,20.0]
[1728807618053,6.8004,147.05,147.0,21.36039658]
[1728807618759,6.8004,147.05,147.0,20.0]
[1728807619852,6.8004,147.05,147.0,21.36039635]
[1728807625645,6.8001,147.06,147.0,21.36039635]
[1728807628066,22.0282,147.07,147.01,11.20687293]
[1728807628264,22.0282,147.07,147.02,12.56706592]
[1728807629564,15.2286,147.07,147.02,12.56706592]
[1728807630669,15.2286,147.07,147.03,31.20687293]
[1728807630847,15.2286,147.07,147.03,11.20687293]
[1728807631457,0.1,147.09,147.04,32.56693422]
[1728807635675,0.1,147.09,147.04,20.0]
[1728807641186,0.1,147.09,147.04,21.35998556]
[1728807643577,0.1,147.09,147.04,12.56685849]
[1728807643788,0.1,147.09,147.05,20.0]
[1728807643989,0.1,147.09,147.06,11.20687293]
[1728807645370,0.1,147.09,147.05,11.20687293]
[1728807645782,0.1,147.09,147.06,20.0]
[1728807646165,0.1,147.09,147.06,21.35987104]
[1728807646370,0.1,147.09,147.07,11.20687293]
[1728807646570,0.1,147.09,147.07,12.56658174]
[1728807646787,0.1,147.09,147.08,11.20687293]
[1728807647095,0.1,147.09,147.08,31.20687293]
[1728807647279,0.1,147.09,147.08,20.0]
[1728807649791,0.1,147.09,147.08,31.20687293]
[1728807651094,0.1,147.09,147.04,23.776884]
[1728807651291,0.1,147.09,147.07,20.0]
[1728807653689,0.1,147.09,147.08,11.20687293]
[1728807653893,0.1,147.09,147.08,20.0]
[1728807655167,0.1,147.09,147.08,21.35974819]
[1728807655374,0.1,147.09,147.08,31.20687293]
[1728807661099,0.1,147.09,147.08,20.0]
[1728807669309,0.1,147.09,147.04,20.0]
[1728807669506,0.1,147.09,147.05,11.20687293]
[1728807669703,0.1,147.09,147.06,20.0]
[1728807671725,6.8986,147.09,147.04,20.0]
[1728807672325,0.1,147.09,147.02,20.0]
[1728807672528,6.7993,147.08,147.04,20.0]
[1728807673422,6.8986,147.09,147.04,20.0]
[1728807673927,6.799,147.08,147.04,20.0]
[1728807674708,0.1,147.09,147.04,20.0]
[1728807674930,6.8986,147.09,147.04,32.5668531]
[1728807675932,0.1,147.09,147.04,31.20687293]
[1728807676128,0.1,147.09,147.06,11.20687293]
[1728807677018,0.1,147.09,147.05,11.20687293]
[1728807677427,0.1,147.09,147.05,15.99320368]
[1728807677744,0.1,147.09,147.05,11.20687293]
[1728807678621,0.1,147.09,147.04,11.20687293]
[1728807678821,0.1,147.09,147.05,23.42695357]
[1728807679129,0.1,147.09,147.05,20.0]
[1728807679911,0.1,147.09,147.07,31.20687293]
[1728807680340,0.1,147.09,147.08,1.35965264]
[1728807683319,0.1,147.09,147.08,32.56652557]
[1728807685237,0.1,147.09,147.08,31.20687293]
[1728807689445,0.1,147.09,147.08,59.76908417]
[1728807696447,0.1,147.09,147.08,58.40978281]
[1728807696956,0.8730986,147.14,147.13,20.0]
[1728807697531,0.8730986,147.14,147.13,21.35911697]
[1728807699349,0.8730986,147.14,147.13,20.0]
[1728807700058,0.8730986,147.14,147.13,56.34287313]
[1728807706038,0.8730986,147.14,147.13,54.98375693]
[1728807706252,0.8730986,147.14,147.13,56.3425903]
[1728807706631,0.8730986,147.14,147.13,60.31251437]
[1728807706826,0.8730986,147.14,147.13,47.74680807]
[1728807707031,0.8730986,147.14,147.13,58.953681]
[1728807708837,0.8730986,147.14,147.13,60.31251595]
[1728807709527,0.8730986,147.14,147.13,47.74680807]
[1728807709727,0.8730986,147.14,147.13,58.953681]
[1728807712649,0.8730986,147.14,147.13,60.31251703]
[1728807713264,0.8730986,147.14,147.13,58.953681]
[1728807713441,0.8730986,147.14,147.13,60.31249707]
[1728807714541,7.10992379,147.26,147.17,20.0]
[1728807714853,0.8730986,147.28,147.26,23.776884]
[1728807715177,0.8730986,147.28,147.2,23.776884]
[1728807715459,21.8169,147.27,147.24,20.0]
[1728807715957,21.8169,147.27,147.24,21.35811533]
[1728807716545,21.8169,147.27,147.24,20.0]
[1728807719151,21.8169,147.27,147.21,11.20687293]
[1728807719438,21.8169,147.27,147.22,21.35811586]
[1728807720141,21.8169,147.27,147.22,20.0]
[1728807720359,21.8169,147.27,147.23,1.35820932]
[1728807720957,0.8730986,147.28,147.24,43.776884]
[1728807721340,0.8730986,147.28,147.25,1.35803325]
[1728807722345,0.8730986,147.28,147.25,1.35803331]
[1728807722734,0.8730986,147.28,147.24,43.776884]
[1728807722935,0.8730986,147.28,147.24,20.0]
[1728807723150,0.8730986,147.28,147.16,17.1682]
[1728807723151,0.8730986,147.28,147.23,20.0]
[1728807723357,0.8730986,147.28,147.23,23.776884]
[1728807723856,0.8730986,147.28,147.24,1.35811693]
[1728807724658,0.8730986,147.28,147.23,23.776884]
[1728807725433,0.8730986,147.28,147.22,11.20687293]
[1728807725434,0.8730986,147.28,147.21,11.20687293]
[1728807725642,6.2457,147.27,147.22,20.0]
[1728807726466,15.5712,147.26,147.16,27.54453481]
[1728807726634,22.3622,147.26,147.19,11.20687293]
[1728807727861,22.3622,147.26,147.2,21.35835805]
[1728807728558,15.5712,147.26,147.21,23.776884]
[1728807728737,15.5712,147.26,147.22,1.35830875]
[1728807730445,0.8730986,147.28,147.23,23.776884]
[1728807730648,0.8730986,147.28,147.24,20.0]
[1728807730860,0.8730986,147.28,147.25,1.35807188]
[1728807731061,0.8730986,147.28,147.24,20.0]
[1728807731241,7.6628986,147.28,147.24,21.35810757]
[1728807731866,7.6628986,147.28,147.24,20.0]
[1728807733151,7.6628986,147.28,147.24,21.35810961]
[1728807733349,0.8730986,147.28,147.24,21.35810961]
[1728807733558,0.8730986,147.28,147.25,25.13499353]
[1728807734255,0.8730986,147.28,147.2,20.0]
[1728807734457,0.8730986,147.28,147.23,43.776884]
[1728807734749,7.6631986,147.28,147.23,43.776884]
[1728807735764,6.7903,147.27,147.21,23.776884]
[1728807735950,6.7907,147.26,147.16,18.23061112]
[1728807736155,6.7907,147.26,147.2,11.20687293]
[1728807736544,21.9097,147.26,147.19,11.20687293]
[1728807736763,21.9097,147.26,147.2,1.35833693]
[1728807737065,6.7912,147.25,147.19,11.20687293]
[1728807737762,15.119,147.26,147.17,20.0]
[1728807737963,6.7911,147.25,147.18,11.20687293]
[1728807738277,6.7911,147.25,147.2,31.20687293]
[1728807738441,21.9097,147.26,147.21,1.35843851]
[1728807740571,6.7911,147.25,147.2,11.20687293]
[1728807740874,6.7911,147.25,147.19,11.20687293]
[1728807741074,6.7911,147.25,147.2,21.3583868]
[1728807741883,6.7911,147.25,147.2,20.0]
[1728807742974,0.8730986,147.28,147.24,20.0]
[1728807743186,0.8730986,147.28,147.25,1.35808331]
[1728807745662,0.8730986,147.28,147.24,20.0]
[1728807746861,6.7908,147.26,147.11,15.119]
[1728807747061,6.7908,147.26,147.21,20.0]
[1728807747378,6.7908,147.26,147.22,1.3583219]
[1728807748357,6.7908,147.26,147.21,1.35832096]
[1728807748556,6.7908,147.26,147.2,11.20687293]
[1728807748872,6.7908,147.26,147.21,23.776884]
[1728807750279,22.0652,147.26,147.21,23.776884]
[1728807750757,15.2744,147.26,147.19,20.0]
[1728807751079,6.7917,147.24,147.19,20.0]
[1728807751590,6.7921,147.23,147.18,20.0]
[1728807751878,6.7917,147.24,147.18,20.0]
[1728807752661,6.7917,147.24,147.18,11.20687293]
[1728807752878,6.7917,147.24,147.19,20.0]
[1728807753182,6.7917,147.24,147.2,1.35852309]
[1728807754662,6.7917,147.24,147.19,20.0]
[1728807758556,0.8730986,147.28,147.24,43.776884]
[1728807758761,0.8730986,147.28,147.26,43.776884]
[1728807758964,0.8730986,147.28,147.26,54.98375693]
[1728807759477,0.8730986,147.28,147.26,43.776884]
[1728807761278,0.8730986,147.28,147.27,56.34144092]
[1728807761479,0.8730986,147.28,147.27,54.98375693]
[1728807763583,0.8730986,147.28,147.27,56.34120384]
[1728807763969,0.8730986,147.28,147.27,54.98375693]
[1728807765769,0.8730986,147.28,147.24,20.0]
[1728807765970,0.8730986,147.28,147.27,11.20687293]
[1728807766507,0.8730986,147.28,147.27,31.20687293]
[1728807767176,0.8730986,147.28,147.27,54.98375693]
[1728807767779,0.8730986,147.28,147.27,34.98375693]
[1728807767962,0.8730986,147.28,147.27,23.776884]
[1728807769381,0.8730986,147.28,147.27,43.776884]
[1728807770393,0.8730986,147.28,147.23,15.7455]
[1728807770580,0.8730986,147.28,147.25,11.20687293]
[1728807770789,0.8730986,147.28,147.26,11.20687293]
[1728807771096,0.8730986,147.28,147.27,1.35779332]
[1728807771892,0.8730986,147.28,147.27,25.13467732]
[1728807772188,0.8730986,147.28,147.27,45.13467732]
[1728807772694,0.8730986,147.28,147.27,43.776884]
[1728807777287,0.8730986,147.28,147.27,23.776884]
[1728807778075,0.8730986,147.28,147.24,20.0]
[1728807778290,0.8730986,147.28,147.22,11.20687293]
[1728807778595,7.6628986,147.28,147.21,14.71462132]
[1728807779287,7.6628986,147.28,147.21,11.20687293]
[1728807779693,7.6628986,147.28,147.22,21.35806413]
[1728807780599,7.6628986,147.28,147.23,23.776884]
[1728807780896,7.6628986,147.28,147.24,21.35805321]
[1728807781096,7.6628986,147.28,147.24,20.0]
[1728807781893,7.6628986,147.28,147.24,21.35810829]
[1728807783098,15.0988,147.27,147.23,23.776884]
[1728807783278,6.7907,147.26,147.2,23.776884]
[1728807784278,6.7907,147.26,147.2,34.98375693]
[1728807784479,6.7907,147.26,147.22,23.776884]
[1728807784797,6.7907,147.26,147.23,1.35821958]
[1728807785015,6.7907,147.26,147.21,23.776884]
[1728807785383,6.7907,147.26,147.22,1.35821972]
[1728807786604,6.7907,147.26,147.21,23.776884]
[1728807787103,6.7907,147.26,147.22,1.35822034]
[1728807789205,6.7907,147.26,147.21,34.98375693]
[1728807789405,6.7907,147.26,147.2,34.98375693]
[1728807789785,6.7907,147.26,147.22,23.776884]
[1728807790505,6.7907,147.26,147.23,1.35827864]
[1728807790684,21.6845,147.27,147.23,21.35827864]
[1728807791904,7.6628986,147.28,147.23,21.35827864]
[1728807793801,7.6628986,147.28,147.23,20.0]
[1728807794704,7.6628986,147.28,147.24,1.35812779]
[1728807795603,0.8730986,147.28,147.23,20.0]
[1728807795795,6.7903,147.27,147.23,20.0]
[1728807796302,6.7903,147.27,147.24,1.35816201]
[1728807796890,6.7903,147.27,147.23,20.0]
[1728807797078,6.7903,147.27,147.24,1.35814162]
[1728807797281,6.7903,147.27,147.23,20.0]
[1728807798002,6.7903,147.27,147.23,21.35819316]
[1728807804814,0.8730986,147.28,147.24,23.776884]
[1728807806813,0.8730986,147.28,147.25,31.20687293]
[1728807807015,0.8730986,147.28,147.27,20.0]
[1728807807805,0.8730986,147.28,147.25,43.776884]
[1728807811609,0.8730986,147.28,147.2,20.0]
[1728807811911,7.6628986,147.28,147.23,23.776884]
[1728807812903,6.7903,147.27,147.19,19.79263718]
[1728807813096,6.7903,147.27,147.2,3.5157717]
[1728807813303,6.7903,147.27,147.21,3.5157717]
[1728807813801,6.7903,147.27,147.2,14.72264463]
[1728807814031,6.7903,147.27,147.21,3.5157717]
[1728807814330,6.7903,147.27,147.21,23.5157717]
[1728807814509,6.7903,147.27,147.21,20.0]
[1728807814896,6.7903,147.27,147.22,27.29372632]
[1728807815096,6.7903,147.27,147.22,23.776884]
[1728807819329,6.7903,147.27,147.22,20.0]
[1728807820207,6.7903,147.27,147.23,3.5197963]
[1728807821717,0.8730986,147.28,147.23,3.5197963]
[1728807822027,6.7907,147.26,147.22,20.0]
[1728807822540,6.7912,147.25,147.21,23.776884]
[1728807822725,6.7912,147.25,147.2,23.776884]
[1728807822917,6.7912,147.25,147.21,3.52265252]
[1728807823114,6.7919,147.24,147.19,23.776884]
[1728807823320,6.7919,147.24,147.2,3.5232144]
[1728807823622,6.7919,147.24,147.21,3.5232144]
[1728807823819,6.7919,147.24,147.2,3.5232144]
[1728807824025,6.7919,147.24,147.21,3.5232144]
[1728807824218,6.7919,147.24,147.2,20.0]
[1728807824422,6.7919,147.24,147.21,3.52345931]
[1728807825436,6.7912,147.25,147.21,3.52345931]
[1728807825734,6.7912,147.25,147.21,3.52300416]
[1728807826316,6.7908,147.26,147.21,3.52300416]
[1728807827523,13.3984,147.27,147.22,1.35839026]
[1728807827928,13.3984,147.27,147.2,31.20687293]
[1728807827929,13.3984,147.27,147.21,4.88015649]
[1728807828111,0.8730986,147.28,147.21,12.56518367]
[1728807828318,0.8730986,147.28,147.26,20.0]
[1728807828522,0.8730986,147.28,147.27,25.13474867]
[1728807828722,0.8730986,147.28,147.21,13.95832531]
[1728807828935,0.8730986,147.28,147.24,43.776884]
[1728807829521,0.8730986,147.28,147.25,1.35795157]
[1728807829842,0.8730986,147.28,147.24,43.776884]
[1728807831918,7.6629986,147.28,147.24,20.0]
[1728807832348,7.6629986,147.28,147.23,43.776884]
[1728807833010,6.7902,147.27,147.23,43.776884]
[1728807834526,6.7902,147.27,147.24,1.35816217]
[1728807834838,0.8730986,147.28,147.24,1.35816217]
[1728807835018,7.6628986,147.28,147.24,1.35816217]
[1728807836024,6.7903,147.27,147.23,43.776884]
[1728807836535,6.7903,147.27,147.24,1.35819569]
[1728807837146,6.7903,147.27,147.23,43.776884]
[1728807837842,6.7903,147.27,147.23,20.0]
[1728807838220,6.7903,147.27,147.22,20.0]
[1728807838522,6.7903,147.27,147.23,4.88264456]
[1728807839418,0.8730986,147.28,147.23,4.88264456]
[1728807839617,7.6629986,147.28,147.23,4.88264456]
[1728807840332,7.6629986,147.28,147.23,4.8822273]
[1728807840944,7.6629986,147.28,147.23,1.35820629]
[1728807842744,0.8730986,147.28,147.24,20.0]
[1728807843839,0.8730986,147.28,147.24,21.35807718]
[1728807846749,6.7903,147.27,147.23,23.776884]
[1728807847049,6.7903,147.27,147.22,23.776884]
[1728807847221,6.7903,147.27,147.23,23.52450803]
[1728807847515,6.7903,147.27,147.23,20.0]
[1728807847931,7.6629986,147.28,147.23,20.0]
[1728807848127,7.6629986,147.28,147.24,1.35814125]
[1728807848528,7.6629986,147.28,147.23,20.0]
[1728807849824,7.6629986,147.28,147.23,21.35814118]
[1728807850845,7.6629986,147.28,147.23,20.0]
[1728807852243,0.8730986,147.28,147.23,20.0]
[1728807852562,6.7908,147.26,147.23,20.0]
[1728807853330,6.7902,147.27,147.23,21.35827871]
[1728807855954,6.7902,147.27,147.23,20.0]
[1728807856753,6.7902,147.27,147.23,21.35826771]
[1728807857332,6.7902,147.27,147.23,20.0]
[1728807862852,0.8730986,147.28,147.23,20.0]
[1728807863032,6.7912,147.25,147.2,23.776884]
[1728807863227,6.7912,147.25,147.21,3.52927519]
[1728807863431,6.7912,147.25,147.22,3.52927519]
[1728807863632,6.7912,147.25,147.2,23.776884]
[1728807863838,6.7912,147.25,147.21,3.52909604]
[1728807864050,6.7912,147.25,147.2,23.776884]
[1728807864238,6.7912,147.25,147.21,23.52930945]
[1728807864659,6.7912,147.25,147.21,20.0]
[1728807864860,6.7916,147.24,147.2,23.776884]
[1728807865054,6.7922,147.23,147.17,20.0]
[1728807865358,6.7922,147.23,147.18,3.53004751]
[1728807865545,6.7921,147.23,147.19,3.53004751]
[1728807865742,6.7921,147.23,147.17,31.20687293]
[1728807865949,6.7921,147.23,147.18,3.52998315]
[1728807866137,6.7921,147.23,147.19,3.52998315]
[1728807866456,6.7921,147.23,147.18,3.5289785]
[1728807866655,6.7921,147.23,147.19,3.5289785]
[1728807866860,6.7921,147.23,147.18,4.88756586]
[1728807867152,6.7921,147.23,147.19,3.5289785]
[1728807868343,6.7921,147.23,147.19,23.52801281]
[1728807868557,6.7921,147.23,147.19,20.0]
[1728807869157,6.7913,147.25,147.2,21.35858457]
[1728807870747,13.2912,147.26,147.2,12.5654575]
[1728807871349,13.2912,147.26,147.2,16.09138699]
[1728807871750,6.5005,147.26,147.2,12.5654575]
[1728807871962,6.7912,147.25,147.2,12.5654575]
[1728807872553,6.7912,147.25,147.2,16.09138699]
[1728807872742,6.7912,147.25,147.2,12.5654575]
[1728807873246,6.7912,147.25,147.2,16.09138699]
[1728807873455,6.7912,147.25,147.2,12.5654575]
[1728807874069,13.2912,147.26,147.21,23.776884]
[1728807874252,6.7907,147.26,147.22,1.35829825]
[1728807875142,6.7912,147.25,147.2,11.20687293]
[1728807875344,6.7912,147.25,147.21,4.88312089]
[1728807875545,6.7912,147.25,147.21,1.35830119]
[1728807885051,6.7912,147.25,147.2,20.0]
[1728807885246,6.7912,147.25,147.21,1.35842101]
[1728807888062,6.7912,147.25,147.18,23.776884]